fUST/lending_fUST_20251121
["ID","MTS","AMOUNT","RATE_DAILY","PERIOD"]
[394559599,1763710248309,-1453.369,0.00013391,2]
[394559600,1763710248319,-242.15909246,0.000134,2]
[394559601,1763710248329,-500.0,0.00013425,2]
[394559602,1763710248339,-2666.60315895,0.00013466,2]
[394559603,1763710248348,-989.0,0.00013513,2]
[394559604,1763710248358,-630.0,0.00013513,2]
[394559605,1763710248368,-2151.0,0.00013513,2]
[394559606,1763710248382,-414.0,0.00013513,2]
[394559607,1763710248397,-2155.30719125,0.00013554,2]
[394559608,1763710248407,-1665.0,0.00013563,2]
[394559609,1763710248416,-209.40437683,0.00013594,2]
[394559610,1763710248426,-500.0,0.00013597,2]
[394559611,1763710248436,-165.04320545,0.00013597,2]
[394559612,1763710248446,-500.0,0.00013597,2]
[394559613,1763710248455,-151.0,0.00013597,2]
[394559614,1763710248465,-500.0,0.00013597,2]
[394559615,1763710248475,-151.0,0.00013597,2]
[394559616,1763710248484,-574.0,0.00013597,2]
[394559617,1763710248494,-500.0,0.00013597,2]
[394559618,1763710248504,-500.0,0.00013597,2]
[394559619,1763710248514,-2170.63,0.00013698,2]
[394559620,1763710248524,-1492.167372,0.00013699,2]
[394559621,1763710248533,-1350.724084,0.00013699,2]
[394559622,1763710248543,-1000.0,0.00013699,2]
[394559623,1763710248552,-500.0,0.00013699,2]
[394559624,1763710248562,-11638.5900424,0.00013699,2]
[394559625,1763710248573,-347.58641058,0.00013699,2]
[394559626,1763710248582,-236.404609,0.00013699,2]
[394559627,1763710248592,-236.404609,0.00013699,2]
[394559628,1763710248601,-236.404609,0.00013699,2]
[394559629,1763710248611,-236.404609,0.00013699,2]
[394559630,1763710248620,-151.000115,0.00013699,2]
[394559631,1763710248630,-1151.939954,0.00013699,2]
[394559632,1763710248643,-1151.939954,0.00013699,2]
[394559633,1763710248653,-1151.939954,0.00013699,2]
[394559634,1763710248663,-1151.939954,0.00013699,2]
[394559635,1763710248673,-151.0,0.00013699,2]
[394559636,1763710248682,-151.0,0.00013699,2]
[394559637,1763710248692,-641.538336,0.00013699,2]
[394559638,1763710248701,-613.93902889,0.00013699,2]
[394559644,1763710679861,175.82,7.492e-05,7]
[394559646,1763710723620,150.5,0.0002199,120]
[394559647,1763710724165,150.5,0.0002198,120]
[394559648,1763710724612,150.5,0.0002197,120]
[394559649,1763710799690,5000.0,9e-05,3]
[394559651,1763710822604,605.94649056,0.00025278,120]
[394559652,1763710823232,4383.46199456,9e-05,3]
[394559653,1763710828839,166.0,0.00021913,120]
[394559654,1763710829995,1296.0,0.00021403,120]
[394559655,1763710830070,166.0,0.00023008,120]
[394559656,1763710831156,1296.0,0.00022473,120]
[394559657,1763710831220,166.0,0.00024159,120]
[394559658,1763710832450,1296.0,0.00023597,120]
[394559659,1763710833747,1296.0,0.00024777,120]
[394559660,1763710836103,778.0,0.0002313,120]
[394559661,1763710837424,778.0,0.00024286,120]
[394559663,1763710845643,333.5,9e-05,3]
[394559666,1763710891731,273.54020003,0.000249,120]
[394559668,1763710962858,425.27399092,9e-05,3]
[394559674,1763711106633,415.0,0.00022613,120]
[394559675,1763711107916,415.0,0.00023743,120]
[394559676,1763711109195,415.0,0.0002493,120]
[394559687,1763711137622,166.0,0.00021472,120]
[394559689,1763711139398,166.0,0.00022546,120]
[394559691,1763711140834,166.0,0.00023673,120]
[394559692,1763711143460,166.0,0.00024857,120]
[394559694,1763711170916,4989.94900782,9e-05,3]
[394559696,1763711199115,-223.02823501,8.196e-05,2]
[394559699,1763711233085,-642.57706273,8.196e-05,2]
[394559700,1763711233116,-1713.66758849,8.196e-05,2]
[394559701,1763711233139,-203.02036069,8.296e-05,2]
[394559702,1763711233163,-242.50426768,8.422e-05,2]
[394559703,1763711233184,-357.03545734,8.465e-05,2]
[394559704,1763711233207,-397.51923251,8.507e-05,2]
[394559705,1763711233229,-213.04286406,8.507e-05,2]
[394559706,1763711233253,-10.05099218,9e-05,3]
[394559707,1763711233276,-300.0,9.311e-05,2]
[394559708,1763711233301,-500.0,9.312e-05,2]
[394559709,1763711233335,-232.58873677,9.312e-05,2]
[394559715,1763711361110,-735.0,8.114e-05,2]
[394559718,1763711420280,249.0,0.00022649,120]
[394559719,1763711421672,249.0,0.00023782,120]
[394559720,1763711423229,249.0,0.00024971,120]
[394559791,1763711432138,-224.05171295,8.507e-05,2]
[394559793,1763711432149,-252.26783862,8.712e-05,2]
[394559795,1763711432159,-564.27722165,9.095e-05,2]
[394559797,1763711432168,-300.0,9.31e-05,2]
[394559799,1763711432179,-300.0,9.31e-05,2]
[394559801,1763711432188,-300.0,9.31e-05,2]
[394559803,1763711432198,-1200.0,9.31e-05,2]
[394559805,1763711432208,-500.0,9.311e-05,2]
[394559807,1763711432218,-265.95047891,9.311e-05,2]
[394559809,1763711432227,-500.0,9.311e-05,2]
[394559811,1763711432237,-500.0,9.311e-05,2]
[394559813,1763711432251,-500.0,9.311e-05,2]
[394559815,1763711432261,-500.0,9.311e-05,2]
[394559817,1763711432271,-500.0,9.311e-05,2]
[394559819,1763711432280,-500.0,9.311e-05,2]
[394559821,1763711432290,-465.78296319,9.311e-05,2]
[394559823,1763711432300,-500.0,9.311e-05,2]
[394559825,1763711432310,-500.0,9.311e-05,2]
[394559827,1763711432320,-500.0,9.311e-05,2]
[394559830,1763711432341,-500.0,9.311e-05,2]
[394559832,1763711432352,-500.0,9.311e-05,2]
[394559834,1763711432362,-500.0,9.311e-05,2]
[394559836,1763711432373,-500.0,9.311e-05,2]
[394559838,1763711432383,-500.0,9.311e-05,2]
[394559840,1763711432394,-500.0,9.311e-05,2]
[394559842,1763711432406,-500.0,9.311e-05,2]
[394559844,1763711432418,-500.0,9.311e-05,2]
[394559846,1763711432428,-500.0,9.311e-05,2]
[394559848,1763711432438,-500.0,9.311e-05,2]
[394559850,1763711432448,-500.0,9.311e-05,2]
[394559852,1763711432458,-500.0,9.311e-05,2]
[394559854,1763711432467,-500.0,9.311e-05,2]
[394559856,1763711432478,-500.0,9.311e-05,2]
[394559858,1763711432493,-500.0,9.311e-05,2]
[394559859,1763711432503,-500.0,9.311e-05,2]
[394559860,1763711432512,-500.0,9.311e-05,2]
[394559861,1763711432525,-429.06450828,9.311e-05,2]
[394559862,1763711432535,-930.0,9.311e-05,2]
[394559863,1763711432544,-2111.0732371,9.313e-05,2]
[394559864,1763711432554,-446.328148,9.632e-05,2]
[394559865,1763711432564,-178.55734543,9.926e-05,2]
[394559866,1763711432573,-382.99481277,9.926e-05,2]
[394559867,1763711432583,-300.0,9.927e-05,2]
[394559868,1763711432593,-300.0,9.927e-05,2]
[394559869,1763711432602,-300.0,9.927e-05,2]
[394559870,1763711432611,-300.0,9.927e-05,2]
[394559871,1763711432621,-300.0,9.927e-05,2]
[394559872,1763711432630,-300.0,9.927e-05,2]
[394559873,1763711432640,-300.0,9.927e-05,2]
[394559875,1763711432649,-300.0,9.927e-05,2]
[394559877,1763711432659,-300.0,9.927e-05,2]
[394559879,1763711432669,-300.0,9.927e-05,2]
[394559881,1763711432682,-300.0,9.927e-05,2]
[394559883,1763711432691,-300.0,9.927e-05,2]
[394559886,1763711432701,-300.0,9.927e-05,2]
[394559888,1763711432711,-300.0,9.927e-05,2]
[394559890,1763711432723,-300.0,9.927e-05,2]
[394559891,1763711432733,-600.0,9.927e-05,2]
[394559893,1763711432747,-500.0,9.927e-05,2]
[394559896,1763711432759,-446.328148,0.0001,3]
[394559901,1763711432773,-446.328148,0.0001,3]
[394559904,1763711432784,-446.328148,0.0001,3]
[394559909,1763711432794,-446.328148,0.0001,3]
[394559911,1763711432804,-446.328148,0.0001,3]
[394559916,1763711432814,-155.429078,0.0001,3]
[394559919,1763711432825,-155.429078,0.0001,3]
[394559922,1763711432835,-155.429078,0.0001,3]
[394559925,1763711432844,-209.40437684,0.0001,2]
[394559927,1763711432854,-500.0,0.00010201,2]
[394559929,1763711432864,-420.0,0.00010241,2]
[394559931,1763711432874,-1680.0,0.00010241,2]
[394559933,1763711432885,-500.0,0.00010475,2]
[394559935,1763711432895,-217.15233878,0.00010548,2]
[394559937,1763711432905,-1788.34328784,0.00010708,2]
[394559939,1763711432915,-297.67604957,0.00010712,2]
[394559941,1763711432925,-474.68806802,0.00010749,2]
[394559952,1763711433032,-25.31193198,0.00010749,2]
[394559954,1763711433043,-774.21113858,0.00010858,2]
[394559955,1763711433056,-232.29344093,0.00010858,2]
[394559956,1763711433067,-92.36141691,0.00010859,2]
[394560203,1763711438090,-531.15224112,9.827e-05,2]
[394560205,1763711438349,-104527.9232219,9.827e-05,2]
[394560206,1763711438359,-3655.03348241,0.00010871,2]
[394560207,1763711438369,-507.57231781,0.00010873,2]
[394560208,1763711438379,-1788.34328784,0.00010905,2]
[394560209,1763711438389,-720.0,0.00010919,2]
[394560210,1763711438400,-2151.0,0.00010951,2]
[394560211,1763711438410,-630.0,0.00010951,2]
[394560212,1763711438419,-989.0,0.00010951,2]
[394560213,1763711438430,-693.56,0.00010958,2]
[394560214,1763711438440,-999.0,0.00010959,2]
[394560215,1763711438450,-209.55487117,0.00010959,7]
[394560216,1763711438460,-500.0,0.00010959,2]
[394560217,1763711438471,-500.0,0.00010959,2]
[394560218,1763711438481,-500.0,0.00010959,2]
[394560219,1763711438494,-500.0,0.00010959,2]
[394560220,1763711438505,-500.0,0.00010959,2]
[394560221,1763711438515,-538.90914594,0.00010959,2]
[394560222,1763711438525,-500.0,0.00010959,2]
[394560223,1763711438535,-500.0,0.00010959,2]
[394560224,1763711438546,-500.0,0.00010959,2]
[394560225,1763711438556,-500.0,0.00010959,2]
[394560226,1763711438566,-500.0,0.00010959,2]
[394560227,1763711438577,-500.0,0.00010959,2]
[394560228,1763711438586,-500.0,0.00010959,2]
[394560229,1763711438596,-500.0,0.00010959,2]
[394560230,1763711438606,-500.0,0.00010959,2]
[394560232,1763711438615,-500.0,0.00010959,2]
[394560234,1763711438625,-500.0,0.00010959,2]
[394560235,1763711438635,-500.0,0.00010959,2]
[394560236,1763711438644,-500.0,0.00010959,2]
[394560237,1763711438654,-500.0,0.00010959,2]
[394560238,1763711438668,-500.0,0.00010959,2]
[394560239,1763711438680,-650.0,0.00010959,2]
[394560240,1763711438691,-500.0,0.00011023,2]
[394560241,1763711438702,-225.18697532,0.00011096,2]
[394560242,1763711438713,-1788.34328784,0.00011102,2]
[394560243,1763711438723,-587.0,0.00011265,2]
[394560245,1763711438733,-2351.0,0.00011265,2]
[394560246,1763711438747,-500.0,0.00011297,2]
[394560248,1763711438760,-1788.34328784,0.00011299,2]
[394560250,1763711438771,-1788.34328784,0.00011495,2]
[394560252,1763711438781,-500.0,0.00011571,2]
[394560254,1763711438791,-233.51889341,0.00011644,2]
[394560256,1763711438802,-1788.34328784,0.00011692,2]
[394560257,1763711438812,-500.0,0.00011845,2]
[394560259,1763711438823,-1788.34328784,0.00011889,2]
[394560260,1763711438834,-196.66734564,0.00011889,7]
[394560261,1763711438845,-233.938344,0.00011889,7]
[394560263,1763711438855,-864.0,0.00012011,2]
[394560265,1763711438865,-693.56,0.00012054,2]
[394560266,1763711438875,-1788.34328784,0.00012085,2]
[394560268,1763711438885,-500.0,0.00012119,2]
[394560270,1763711438895,-150.0,0.00012147,2]
[394560272,1763711438905,-242.15909246,0.00012192,2]
[394560273,1763711438915,-353.13058887,0.0001227,2]
[394560274,1763711438925,-1788.34328784,0.00012282,2]
[394560276,1763711438936,-523.96,0.00012329,2]
[394560278,1763711438946,-823.0,0.00012391,2]
[394560280,1763711438956,-2874.0,0.00012391,2]
[394560282,1763711438965,-157.6787705,0.00012393,2]
[394560284,1763711438975,-1790.13163113,0.00012479,2]
[394560286,1763711438986,-268.72946794,0.00012596,7]
[394560287,1763711439000,-1000.0,0.00012656,2]
[394560288,1763711439010,-1000.0,0.00012656,2]
[394560289,1763711439019,-1000.0,0.00012656,2]
[394560290,1763711439029,-1000.0,0.00012656,2]
[394560291,1763711439040,-1000.0,0.00012656,2]
[394560292,1763711439050,-1000.0,0.00012656,2]
[394560293,1763711439060,-1000.0,0.00012656,2]
[394560295,1763711439070,-199.1008196,0.00012656,2]
[394560296,1763711439079,-151.0,0.00012656,2]
[394560297,1763711439090,-574.12855637,0.00012656,2]
[394560298,1763711439101,-151.0,0.00012656,2]
[394560299,1763711439111,-151.0,0.00012656,2]
[394560300,1763711439121,-151.0,0.00012656,2]
[394560301,1763711439131,-151.0,0.00012656,2]
[394560302,1763711439142,-263.45154327,0.00012656,2]
[394560303,1763711439152,-250.0,0.00012656,2]
[394560304,1763711439162,-151.0,0.00012656,2]
[394560305,1763711439171,-250.0,0.00012656,2]
[394560306,1763711439181,-151.0,0.00012656,2]
[394560307,1763711439191,-250.0,0.00012656,2]
[394560308,1763711439202,-151.0,0.00012656,2]
[394560309,1763711439212,-250.0,0.00012656,2]
[394560310,1763711439222,-151.0,0.00012656,2]
[394560311,1763711439232,-250.0,0.00012656,2]
[394560312,1763711439246,-151.0,0.00012656,2]
[394560313,1763711439256,-250.0,0.00012656,2]
[394560314,1763711439266,-151.0,0.00012656,2]
[394560315,1763711439276,-250.0,0.00012656,2]
[394560316,1763711439286,-250.0,0.00012656,2]
[394560317,1763711439296,-151.0,0.00012656,2]
[394560318,1763711439306,-250.0,0.00012656,2]
[394560319,1763711439318,-250.0,0.00012656,2]
[394560320,1763711439327,-500.0,0.00012656,2]
[394560321,1763711439338,-151.0,0.00012656,2]
[394560322,1763711439348,-250.0,0.00012656,2]
[394560323,1763711439358,-250.0,0.00012656,2]
[394560324,1763711439368,-500.0,0.00012656,2]
[394560325,1763711439377,-151.0,0.00012656,2]
[394560326,1763711439387,-250.0,0.00012656,2]
[394560327,1763711439396,-250.0,0.00012656,2]
[394560328,1763711439406,-500.0,0.00012656,2]
[394560329,1763711439416,-163.44618027,0.00012656,2]
[394560330,1763711439426,-250.0,0.00012656,2]
[394560331,1763711439435,-250.0,0.00012656,2]
[394560332,1763711439445,-500.0,0.00012656,2]
[394560333,1763711439454,-250.0,0.00012656,2]
[394560334,1763711439464,-500.0,0.00012656,2]
[394560335,1763711439473,-209.40437684,0.00012656,2]
[394560336,1763711439483,-500.0,0.00012656,2]
[394560337,1763711439498,-250.0,0.00012656,2]
[394560338,1763711439509,-500.0,0.00012656,2]
[394560339,1763711439519,-250.0,0.00012656,2]
[394560340,1763711439529,-250.0,0.00012656,2]
[394560341,1763711439539,-250.0,0.00012656,2]
[394560342,1763711439548,-500.0,0.00012656,2]
[394560343,1763711439559,-250.0,0.00012656,2]
[394560344,1763711439569,-250.0,0.00012656,2]
[394560345,1763711439580,-500.0,0.00012656,2]
[394560346,1763711439591,-250.0,0.00012656,2]
[394560347,1763711439603,-250.0,0.00012656,2]
[394560348,1763711439614,-500.0,0.00012656,2]
[394560349,1763711439625,-250.0,0.00012656,2]
[394560350,1763711439636,-500.0,0.00012656,2]
[394560355,1763711439647,-250.0,0.00012656,2]
[394560358,1763711439660,-250.0,0.00012656,2]
[394560361,1763711439674,-300.0,0.00012656,2]
[394560363,1763711439685,-250.0,0.00012656,2]
[394560366,1763711439700,-250.0,0.00012656,2]
[394560367,1763711439712,-250.0,0.00012656,2]
[394560369,1763711439723,-12711.86546183,0.00012656,2]
[394560371,1763711439734,-250.0,0.00012656,2]
[394560373,1763711439750,-250.0,0.00012656,2]
[394560374,1763711439763,-250.0,0.00012656,2]
[394560375,1763711439773,-250.0,0.00012656,2]
[394560377,1763711439784,-250.0,0.00012656,2]
[394560379,1763711439794,-250.0,0.00012656,2]
[394560380,1763711439804,-343.08426052,0.00012713,2]
[394560386,1763711439814,-150.0,0.00012726,2]
[394560387,1763711439982,-258.85,0.0001274,2]
[394560388,1763711440000,-251.11897888,0.0001274,2]
[394560389,1763711440013,-3508.2368521,0.00012989,2]
[394560390,1763711440023,-213.6,0.00013074,7]
[394560392,1763711440035,-196.67,0.00013074,7]
[394560394,1763711440046,-693.56,0.0001315,2]
[394560396,1763711440056,-470.83313884,0.00013204,2]
[394560398,1763711440067,-232.93493726,0.00013204,2]
[394560400,1763711440077,-1000.0,0.00013212,2]
[394560401,1763711440087,-150.0,0.00013234,2]
[394560402,1763711440098,-260.4103811,0.00013288,2]
[394560403,1763711440108,-168.0,0.000133,2]
[394560404,1763711440118,-446.328148,0.00013329,2]
[394560405,1763711440128,-2252.81941553,0.00013439,2]
[394560406,1763711440139,-800.0,0.00013461,2]
[394560407,1763711440148,-805.22552516,0.00013463,2]
[394560408,1763711440158,-800.0,0.00013465,2]
[394560409,1763711440168,-800.0,0.0001347,2]
[394560410,1763711440177,-800.0,0.00013541,2]
[394560412,1763711440187,-14696.0361173,0.00013552,2]
[394560414,1763711440197,-500.0,0.00013597,2]
[394560415,1763711440208,-500.0,0.00013597,2]
[394560416,1763711440218,-500.0,0.00013597,2]
[394560417,1763711440228,-500.0,0.00013597,2]
[394560418,1763711440237,-151.0,0.00013597,2]
[394560419,1763711440254,-151.0,0.00013597,2]
[394560420,1763711440264,-151.0,0.00013597,2]
[394560421,1763711440274,-500.0,0.00013597,2]
[394560422,1763711440284,-811.0,0.000136,2]
[394560423,1763711440293,-600.0,0.0001363,2]
[394560424,1763711440303,-493.43581752,0.00013684,2]
[394560426,1763711440313,-33414.3849903,0.00013697,2]
[394560428,1763711440322,-151.0,0.00013697,2]
[394560430,1763711440332,-151.0,0.00013697,2]
[394560431,1763711440342,-151.0,0.00013698,2]
[394560432,1763711440352,-929.101964,0.00013698,2]
[394560433,1763711440361,-929.101964,0.00013698,2]
[394560434,1763711440371,-929.101964,0.00013698,2]
[394560435,1763711440381,-929.101964,0.00013698,2]
[394560436,1763711440391,-524.36701585,0.00013698,2]
[394560437,1763711440401,-531.40266054,0.00013698,2]
[394560439,1763711440412,-500.0,0.00013698,2]
[394560441,1763711440422,-500.0,0.00013698,2]
[394560442,1763711440431,-500.0,0.00013698,2]
[394560443,1763711440441,-500.0,0.00013698,2]
[394560444,1763711440451,-500.0,0.00013698,2]
[394560445,1763711440460,-500.0,0.00013698,2]
[394560446,1763711440471,-500.0,0.00013698,2]
[394560447,1763711440480,-540.25083709,0.00013698,2]
[394560448,1763711440490,-2080.19,0.00013698,2]
[394560449,1763711440506,-2080.19,0.00013698,2]
[394560450,1763711440516,-2080.19,0.00013698,2]
[394560451,1763711440526,-2080.19,0.00013698,2]
[394560452,1763711440535,-1484.85606182,0.00013698,2]
[394560453,1763711440550,-595.33393818,0.00013698,2]
[394560454,1763711440560,-353.0637035,0.00013698,2]
[394560455,1763711440569,-693.393887,0.00013699,2]
[394560456,1763711440579,-693.393887,0.00013699,2]
[394560457,1763711440588,-693.393887,0.00013699,2]
[394560458,1763711440598,-693.393887,0.00013699,2]
[394560459,1763711440608,-151.0,0.00013699,2]
[394560460,1763711440619,-348.26509123,0.00013699,2]
[394560461,1763711440628,-626.87716422,0.00013699,2]
[394560464,1763711440638,-414.2658175,0.00013699,2]
[394560466,1763711440647,-745.6784715,0.00013699,2]
[394560467,1763711440657,-1114.44829194,0.00013699,2]
[394560468,1763711440671,-1325.650616,0.00013699,2]
[394560469,1763711440682,-1000.0,0.00013699,2]
[394560470,1763711440693,-1056.35006849,0.00013699,2]
[394560471,1763711440703,-1001.33662621,0.00013699,2]
[394560472,1763711440714,-166.47788519,0.00013699,2]
[394560473,1763711440724,-160.0,0.00013699,2]
[394560474,1763711440735,-300.0,0.00013699,2]
[394560475,1763711440750,-300.0,0.00013699,2]
[394560476,1763711440761,-300.0,0.00013699,2]
[394560477,1763711440771,-300.0,0.00013699,2]
[394560478,1763711440781,-300.0,0.00013699,2]
[394560479,1763711440791,-288.9942,0.00013699,2]
[394560480,1763711440801,-2080.19,0.00013733,2]
[394560481,1763711440810,-572.93668769,0.00013734,2]
[394560482,1763711440820,-500.0,0.00013734,2]
[394560483,1763711440829,-500.0,0.00013734,2]
[394560484,1763711440839,-500.0,0.00013734,2]
[394560485,1763711440849,-151.0,0.00013734,2]
[394560486,1763711440859,-279.23716234,0.00013734,2]
[394560487,1763711440869,-500.0,0.00013734,2]
[394560488,1763711440878,-151.0,0.00013749,2]
[394560489,1763711440888,-151.0,0.00013749,2]
[394560490,1763711440898,-151.0,0.00013749,2]
[394560491,1763711440912,-151.0,0.00013749,2]
[394560492,1763711440922,-151.0,0.00013749,2]
[394560493,1763711440932,-1665.0,0.00013749,2]
[394560494,1763711440942,-514.27062316,0.00013787,2]
[394560495,1763711440951,-500.0,0.00013787,2]
[394560496,1763711440962,-500.0,0.00013787,2]
[394560497,1763711440972,-506.55512657,0.00013787,2]
[394560498,1763711440981,-500.0,0.00013787,2]
[394560499,1763711440991,-500.0,0.00013787,2]
[394560500,1763711441006,-158.59234614,0.00013787,2]
[394560501,1763711441015,-506.70372521,0.00013787,2]
[394560502,1763711441025,-500.0,0.00013787,2]
[394560503,1763711441034,-500.0,0.00013787,2]
[394560504,1763711441045,-500.0,0.00013787,2]
[394560505,1763711441054,-500.0,0.00013787,2]
[394560506,1763711441064,-500.0,0.00013787,2]
[394560507,1763711441074,-1665.0,0.00013794,2]
[394560508,1763711441084,-168.0,0.00013812,2]
[394560509,1763711441093,-150.0,0.00013836,2]
[394560510,1763711441103,-270.0455652,0.00013836,2]
[394560511,1763711441113,-1665.0,0.00013867,2]
[394560512,1763711441123,-500.0,0.00013871,2]
[394560513,1763711441132,-650.0,0.00013871,2]
[394560514,1763711441142,-500.0,0.00013871,2]
[394560515,1763711441152,-151.0,0.00013871,2]
[394560516,1763711441161,-500.0,0.00013871,2]
[394560517,1763711441170,-1665.0,0.00013878,2]
[394560518,1763711441180,-1665.0,0.00013898,2]
[394560519,1763711441190,-2080.19,0.00013899,2]
[394560520,1763711441199,-1665.0,0.00013899,2]
[394560521,1763711441209,-785.88271317,0.00013927,7]
[394560522,1763711441219,-934.81762263,0.00013927,7]
[394560523,1763711441228,-1665.0,0.00013945,2]
[394560524,1763711441238,-151.0,0.00013951,2]
[394560525,1763711441251,-151.0,0.00013951,2]
[394560526,1763711441260,-2151.0,0.00013951,2]
[394560527,1763711441270,-630.0,0.00013951,2]
[394560528,1763711441280,-400.479,0.00013951,2]
[394560529,1763711441290,-506.50427355,0.00013958,2]
[394560530,1763711441300,-151.452222,0.00013965,2]
[394560531,1763711441310,-501.81896579,0.00013968,2]
[394560532,1763711441320,-510.13484664,0.00013968,2]
[394560533,1763711441330,-500.0,0.00013968,2]
[394560534,1763711441339,-500.0,0.00013968,2]
[394560535,1763711441349,-693.393887,0.00013968,2]
[394560536,1763711441359,-693.393887,0.00013968,2]
[394560537,1763711441368,-693.393887,0.00013968,2]
[394560538,1763711441378,-693.393887,0.00013968,2]
[394560539,1763711441387,-2080.19,0.00013999,2]
[394560540,1763711441397,-2080.19,0.00013999,2]
[394560541,1763711441407,-2080.19,0.00013999,2]
[394560542,1763711441416,-44426.28,0.00014,3]
[394560543,1763711441426,-1000.0,0.00014,14]
[394560544,1763711441435,-151.0,0.00014,2]
[394560545,1763711441444,-151.0,0.00014,2]
[394560546,1763711441454,-151.0,0.00014,2]
[394560547,1763711441463,-151.0,0.00014,2]
[394560548,1763711441473,-151.0,0.00014,2]
[394560549,1763711441483,-929.101964,0.00014,2]
[394560550,1763711441494,-929.101964,0.00014,2]
[394560551,1763711441507,-929.101964,0.00014,2]
[394560552,1763711441516,-929.101964,0.00014,2]
[394560553,1763711441526,-693.393887,0.00014,2]
[394560554,1763711441535,-693.393887,0.00014,2]
[394560555,1763711441546,-693.393887,0.00014,2]
[394560556,1763711441556,-693.393887,0.00014,2]
[394560557,1763711441565,-151.0,0.00014,2]
[394560558,1763711441574,-500.0,0.00014008,2]
[394560559,1763711441584,-500.0,0.00014008,2]
[394560560,1763711441594,-151.0,0.00014008,2]
[394560561,1763711441603,-500.0,0.00014008,2]
[394560562,1763711441613,-1665.0,0.00014013,2]
[394560563,1763711441623,-168.0,0.00014025,2]
[394560564,1763711441632,-1665.0,0.00014071,2]
[394560565,1763711441642,-500.0,0.00014102,2]
[394560566,1763711441652,-500.0,0.00014102,2]
[394560567,1763711441663,-500.0,0.00014102,2]
[394560568,1763711441673,-500.0,0.00014145,2]
[394560569,1763711441686,-500.0,0.00014145,2]
[394560570,1763711441696,-167.73868229,0.00014145,2]
[394560571,1763711441706,-500.0,0.00014145,2]
[394560572,1763711441715,-1665.0,0.00014155,2]
[394560573,1763711441726,-1665.0,0.00014157,2]
[394560574,1763711441736,-500.0,0.00014227,2]
[394560575,1763711441748,-500.0,0.00014227,2]
[394560576,1763711441758,-693.56,0.00014246,2]
[394560577,1763711441768,-260.0,0.00014247,2]
[394560578,1763711441777,-1665.0,0.00014252,2]
[394560579,1763711441787,-2080.19,0.00014267,2]
[394560580,1763711441797,-1665.0,0.00014268,2]
[394560581,1763711441806,-500.0,0.00014282,2]
[394560582,1763711441816,-500.0,0.00014282,2]
[394560583,1763711441826,-500.0,0.00014282,2]
[394560584,1763711441835,-1665.0,0.00014297,2]
[394560585,1763711441844,-5888.0,0.00014307,2]
[394560586,1763711441853,-500.0,0.00014313,2]
[394560587,1763711441863,-1665.0,0.00014331,2]
[394560588,1763711441872,-1000.0,0.00014335,2]
[394560589,1763711441882,-1000.0,0.00014335,2]
[394560590,1763711441891,-1000.0,0.00014335,2]
[394560591,1763711441900,-345.92527344,0.00014335,2]
[394560592,1763711441909,-611.89646868,0.00014335,2]
[394560593,1763711441918,-1000.0,0.00014335,2]
[394560594,1763711441928,-1000.0,0.00014335,2]
[394560595,1763711441938,-500.0,0.0001436,2]
[394560596,1763711441948,-1665.0,0.00014365,2]
[394560597,1763711441957,-5888.0,0.00014374,2]